Cogmind - Beta 9.6 @@@ ROGUE MODE // 2020.07.14 @ 15:40:08 Player: Ariadne Result: Destroyed by G-47 Trooper with Particle Gun Performance ------------- Evolutions (0) 0 Regions Visited (1) 200 Robots Destroyed (35) 175 Value Destroyed (796) 796 Prototype IDs (2) 40 Alien Tech Used (0) 0 Bonus (0) 0 TOTAL SCORE: 1211 Bonus ------- None Cogmind --------- Core Integrity 0/250 Matter 293/300 Energy 196/250 System Corruption 1% Temperature Cool (9) Movement Walking (150) Ox1 Location -10/Materials Parts ------- > --- POWER (1) -------- Ion Engine > --- PROPULSION (2) --- Improved Aluminum Leg Improved Aluminum Leg > --- UTILITY (2) ------ High-capacity Storage Unit Hacking Suite > --- WEAPON (2) ------- Assault Rifle Light Assault Rifle > --- INVENTORY (12) --- Aluminum Leg Aluminum Leg Improved Aluminum Leg Backup Propulsion I Salvage Targeting Computer Peak State ------------ > --- POWER ------------ Ion Engine > --- PROPULSION ------- Improved Aluminum Leg Improved Aluminum Leg > --- UTILITY ---------- High-capacity Storage Unit Hacking Suite > --- WEAPON ----------- Small Laser Small Laser > --- INVENTORY -------- Ion Engine Aluminum Leg Aluminum Leg [Rating: 11] Favorites ----------- Power Ion Engine Engine Ion Engine Propulsion Improved Aluminum Leg Treads Light Treads Leg Improved Aluminum Leg Utility Hacking Suite Device Heat Sink Storage High-capacity Storage Unit Hackware Hacking Suite Weapon Small Laser Energy Gun Small Laser Ballistic Gun Assault Rifle Special Weapon Mining Laser Build | -11 -10 ------- Run | Scr Mat Slots Evolved . | . . Power . | . . Propulsion . | . . Utility . | . . Weapon . | . . Parts Attached 46 | 6 40 Power 5 | 1 4 Engine 5 | 1 4 Core . | . . Reactor . | . . Propulsion 12 | 2 10 Treads 2 | 2 . Leg 10 | . 10 Wheel . | . . Hover . | . . Flight . | . . Utility 10 | 1 9 Device 3 | . 3 Storage 6 | 1 5 Processor . | . . Hackware 1 | . 1 Protection . | . . Artifact . | . . Weapon 19 | 2 17 Energy Gun 8 | 1 7 Energy Cannon . | . . Ballistic Gun 7 | 1 6 Ballistic Cannon . | . . Launcher . | . . Special Weapon 4 | . 4 Impact Weapon . | . . Slashing Weapon . | . . Piercing Weapon . | . . Special Melee Weapon . | . . Unidentified Prototypes . | . . Parts Lost 9 | . 9 Power 2 | . 2 Propulsion 1 | . 1 Utility . | . . Weapon 6 | . 6 Highest Loss Streak 4 | . 4 Average Slot Usage (%) 96 | . 96 Engine 13 | . 13 Treads 8 | . 8 Leg 19 | . 19 Storage 15 | . 15 Hackware 10 | . 10 Energy Gun 11 | . 11 Ballistic Gun 13 | . 13 Special Weapon 2 | . 2 Naked Turns . | . . Heaviest Build 58 | 12 58 Greatest Support 40 | 40 40 Greatest Overweight (x) 2 | 1 2 Average Overweight (x) . | . . Largest Inventory Capacity 18 | 6 18 Average Capacity 10 | 5 11 Most Carried 6 | 2 6 Average Carried 2 | . 2 Final Capacity 12 | 6 12 Final Carried 5 | . 5 Class Distribution -------------------- 73% | Mutant 26% | Scavenger-Mutant Dominant Class ---------------- Mutant | -10/Materials Resources | -11 -10 ----------- Run | Scr Mat Matter Collected 757 | 216 541 Remotely . | . . Salvage Created 1069 | . 1069 Parts 83 | . 83 Haulers Intercepted 2 | . 2 Recyclers Shooed 2 | . 2 Parts Field Recycled . | . . Retrieved Matter . | . . Parts Self-Destructed . | . . Prevented . | . . Kills | -11 -10 ------- Run | Scr Mat Combat Hostiles Destroyed 28 | . 28 Guns 28 | . 28 Classes Destroyed 7 | . 7 Worker 2 | . 2 Builder 1 | . 1 Tunneler 1 | . 1 Hauler 2 | . 2 Operator 1 | . 1 Swarmer 9 | . 9 Grunt 19 | . 19 Best Kill Streak 5 | . 5 Combat Bots Only 4 | . 4 Max Kills in Single Turn 2 | . 2 Gunslinging 1 | . 1 Exploded . | . . Melee . | . . Uniques/NPCs Destroyed . | . . Combat | -11 -10 -------- Run | Scr Mat Damage Taken 1567 | . 1567 Core 254 | . 254 Absorbed by Shields . | . . Core Remaining (%) 100 | 100 . Volleys Fired 124 | . 124 Largest 2 | . 2 Hottest 120 | . 120 Shots Fired 185 | . 185 Gun 184 | . 184 Cannon . | . . Launcher . | . . Special 1 | . 1 Kinetic 83 | . 83 Thermal 102 | . 102 Explosive . | . . Electromagnetic . | . . Robot Hit Streak 8 | . 8 Robot Miss Streak 5 | . 5 Penetration Max . | . . Secondary Targets 5 | . 5 Max Gunslinging Chain 1 | . 1 Shots Hit Robots 123 | . 123 Core Hits 62 | . 62 Critical Hits 1 | . 1 Critical Kills 1 | . 1 Critical Parts Destroyed . | . . Melee Attacks . | . . Impact . | . . Slashing . | . . Piercing . | . . Sneak Attacks . | . . Combat Hostiles . | . . Follow-up Attacks . | . . Damage Inflicted 1384 | . 1384 Guns 1370 | . 1370 Cannons . | . . Explosions . | . . Melee . | . . Ramming 14 | . 14 Kinetic 564 | . 564 Thermal 806 | . 806 Explosive . | . . Electromagnetic . | . . Impact . | . . Slashing . | . . Piercing . | . . Highest Corruption 1 | . 1 Average Corruption 1 | . 1 Corruption Purged . | . . Effects 2 | . 2 Energy Discharges 2 | . 2 Overload Shots . | . . Overflow Damage . | . . Projectiles . | . . Explosions . | . . Melee . | . . Knockbacks . | . . Impact . | . . Kinetic . | . . Secondary . | . . Self-Inflicted Damage . | . . Shots . | . . Rammed 1 | . 1 Targets Rammed 5 | . 5 Kicked 3 | . 3 Crushed 1 | . 1 Highest Temperature 231 | . 231 Average Temperature 56 | . 56 Received Heat Transfer 738 | . 738 Effects 2 | . 2 Interference 2 | . 2 Siege Activations . | . . Robots Corrupted . | . . Combat Hostiles . | . . Parts Fried . | . . Impact Corruptions . | . . Robots Melted . | . . Combat Hostiles . | . . Parts Melted 4 | . 4 Heat Transferred 1988 | . 1988 Parts Sabotaged . | . . Parts Stolen . | . . Parts Stripped . | . . Power Chain Reactions . | . . Missiles Intercepted . | . . Alert | -11 -10 ------- Run | Scr Mat Peak Influence 312 | . 312 Average Influence 138 | . 151 Maximum Alert Level 1 | . 1 Low Security (%) 65 | 100 62 Level 1 34 | . 37 Level 2 . | . . Level 3 . | . . Level 4 . | . . Level 5 . | . . High Security . | . . Max Security . | . . Squads Dispatched 6 | . 6 Investigation 5 | . 5 Extermination . | . . Reinforcement 1 | . 1 Assault . | . . Garrison . | . . Intercept . | . . Construction Impeded . | . . Haulers Reinforced . | . . Stealth | -11 -10 --------- Run | Scr Mat Distress Signals 7 | . 7 Communications Jammed . | . . Distress Signals . | . . Times Spotted 47 | . 47 Peak Tracking Total 5 | . 5 Tactical Retreats . | . . Traps | -11 -10 ------- Run | Scr Mat Traps Triggered . | . . Indirectly . | . . Trap Hack Attempts . | . . Triggered . | . . Disarmed . | . . Reprogrammed . | . . Reused . | . . Traps Extracted . | . . Installed . | . . Triggered . | . . Machines | -11 -10 ---------- Run | Scr Mat Machines Disabled . | . . Max in Single Turn . | . . Machines Sabotaged . | . . Garrisons Compromised . | . . Overloaded Fab Kills . | . . Fab Network Shutdowns . | . . Hacking | -11 -10 --------- Run | Scr Mat Machines Accessed 8 | . 8 Terminals 6 | . 6 Fabricators . | . . Repair Stations 1 | . 1 Recycling Units 1 | . 1 Scanalyzers . | . . Garrison Access . | . . Total Hacks 35 | . 35 Successful 28 | . 28 Failed 6 | . 6 Catastrophic 1 | . 1 Database Lockouts 1 | . 1 Manual 8 | . 8 Terminals 31 | . 31 Fabricators . | . . Repair Stations 3 | . 3 Recycling Units 1 | . 1 Scanalyzers . | . . Garrison Access . | . . Terminal Hacks 24 | . 24 Record 7 | . 7 Prototype ID Bank 1 | . 1 Alert Level 3 | . 3 Unreport Threat 1 | . 1 Locate Traps 1 | . 1 Dispatch Records 2 | . 2 Security Status 1 | . 1 Patrol Status 2 | . 2 Transport Status 1 | . 1 Investigation Status 1 | . 1 Assault Status 1 | . 1 Hauler Manifests 1 | . 1 Registered Components 1 | . 1 Zone Layout 1 | . 1 Fabricator Hacks . | . . Repair Station Hacks 3 | . 3 Scan Component 1 | . 1 Repair 1 | . 1 Refit 1 | . 1 Recycling Unit Hacks 1 | . 1 Report Inventory 1 | . 1 Scanalyzer . | . . Garrison Access Hacks . | . . Unauthorized Hacks . | . . Terminals . | . . Fabricators . | . . Repair Stations . | . . Recycling Units . | . . Scanalyzers . | . . Garrison Access . | . . Data Cores Recovered 1 | . 1 Used . | . . Hacking Detections 7 | . 7 Full Trace Events 6 | . 6 Feedback Events 1 | . 1 Corruption 1 | . 1 Feedback Blocked . | . . Robot Schematics Acquired . | . . Robots Built . | . . Matter . | . . Time . | . . Total Robot Build Rating . | . . Part Schematics Acquired . | . . Parts Built . | . . Matter . | . . Time . | . . Total Part Build Rating . | . . Parts Repaired 1 | . 1 Time 32 | . 32 Parts Recycled . | . . Recycled Matter . | . . Retrieved Matter . | . . Retrieved Components . | . . Parts Scanalyzed . | . . Part Schematics Acquired . | . . Parts Damaged . | . . Bothacking | -11 -10 ------------ Run | Scr Mat Used RIF Installer . | . . Robots Hacked . | . . Non-combat . | . . Combat . | . . Robot Hacks Applied . | . . Relay Couplers Released . | . . Robots Rewired . | . . Allies Hacked . | . . Hacks Repelled . | . . Allies | -11 -10 -------- Run | Scr Mat Total Allies . | . . Largest Group . | . . Highest-Rated Group . | . . Highest-Rated Ally . | . . Total Orders . | . . Ally Attacks . | . . Total Damage . | . . Kills . | . . Allies Corrupted . | . . Allies Melted . | . . Intel | -11 -10 ------- Run | Scr Mat Robot Analysis Total . | . . Derelict Logs Recovered . | . . Drone Launches . | . . Drone Recoveries . | . . Exploration | -11 -10 ------------- Run | Scr Mat Turns Passed 2013 | 170 1843 Spaces Moved 955 | 97 858 Core 21 | 21 . Treads 318 | 76 242 Legs 616 | . 616 Wheels . | . . Hover . | . . Flight . | . . Fastest Speed 50 | 50 120 Average Speed 155 | 143 157 Slowest Speed 180 | 160 180 Overloaded Moves . | . . Propulsion Burnouts . | . . Robots Hopped . | . . Cave-ins Triggered . | . . Exploration Rate (%) 43 | 5 81 Regions Visited 1 Branch Regions . Pre-discovered Areas . | . . Known Exits Taken . | . . Unknown Exits Taken 1 | 1 . Scrap Searched . | . . Spaces Dug . | . . Terrain Destroyed 1 | . 1 Melee . | . . Projectile 1 | . 1 AOE . | . . Actions | -11 -10 --------- Run | Scr Mat Total 1303 | 128 1175 Wait 98 | 20 78 Move 954 | 96 858 Hop . | . . Pick Up 47 | 6 41 Fast Attach . | . . Attach 21 | 6 15 Detach 3 | . 3 Swap 25 | . 25 Drop 26 | . 26 Fire 124 | . 124 Melee . | . . Ram . | . . Kick 3 | . 3 Crush 2 | . 2 Escape Stasis . | . . Rewire . | . . Trap . | . . Miscellaneous . | . . Route ------- -11/Scrapyard -10/Materials (discovered 3 exits: [*Mat x2] / [*Min]) History --------- Turn | Location | Event 12 | -11/Scrapyard | Discovered new exit (range 16) 171 | -11/Scrapyard | Entered Materials 317 | -10/Materials | Build established: Mutant 770 | -10/Materials | Discovered new exit (range 16) 779 | -10/Materials | Central database locked down 902 | -10/Materials | Core integrity fell below 50% 1004 | -10/Materials | Build established: Scavenger-Mutant 1212 | -10/Materials | Discovered new exit (range 16) 1536 | -10/Materials | Build established: Mutant 1587 | -10/Materials | Core integrity fell below 20% 1613 | -10/Materials | Lost 4 parts (1p1n2w) 1697 | -10/Materials | Repaired Imp. Aluminum Leg 1818 | -10/Materials | Discovered new exit (range 12) 2014 | -10/Materials | Destroyed by G-47 Trooper with Particle Gun Last Messages --------------- 01818_ EXIT=FOUND 01865_ Acquired Aluminum Leg. 01868_ Dropped Aluminum Leg. 01888_ Connecting with Terminal... >>Query(Lightweight Power Sources) Many engines, cores, and reactors have an alternative lightweight variant that retains the generation efficiency of its standard version but minimizes built-in battery space to reduce weight for certain robot designs, especially those with strict weight restrictions such as hovering and flight-based models. >>Alert(Check) Current Alert Level: 1-B [Achievement: Everything Is Under Control] >>Alert(Purge) Purged threat record, alert level lowered. >>Alert(Check) Current Alert Level: Low Security 01890_ R-06 Scavenger collects Aluminum Leg. 01969_ Acquired 3 matter. 02013_ System corrupted: Energy discharge (-60). Map ----- +----------------------------------------------------+ | ?????????????????????????????????????????????????? | | ?????????????????????????????????????????????????? | | ?????????????????????????????????????????????????? | | ?????????????????????????????????????????????????? | | ?????????????????????????????????????????????????? | | ?????????????????????????????????????????????????? | | ?????????????????????????????????????????????????? | | ?????????????????????????????????????????????????? | | ?????????????????????????????????????????????????? | | ?????????????????????????????????????????????????? | | ?????????????????????????????????????????????##### | | ?????????????????????????????????????????????# # | | ??????????????##+###############?????????????# < # | | ??????????????? ?????????????# # | | ???????????????? ??????????????# # | | ????????????????? """" ????????????????# # | | ??????????????????#o """" g#?????????????????# + | | ??????????????????# """" ########??????????# # | | ??????????????????#^ # ! !!!#??????????# # | | ??????????????????# ^ # !! #########??# # | | ??????????????????# #"" !! ## #??# # | | ??????????????????# #"T ##^^^ ^#??# # | | ????????????????###/!! #"" + #??# # | | ????????????????#""/!! # # #??# | | ????????????????#"Y!! ####+###% #??# ### | | ????????????????#"" @ r #??# #?? | | ????????????????### ! #??# #?? | | ??????????????????# w #??# #?? | | ??????????????????# #######+####+####+#??# #?? | | ###???????????????## % ##???#= # #### #?? | | ########?????????# %#????# # """ / ### | | #?????????# #????# # R" ## # | | #?????????# #????# """ #%%""" ## # | | = #????????## ####?# """ =# ## # " | | #####????# """#?# """ # ! ! ## # " | | !!##????# "#?################ # " | | ## !#????# "#????########????# + " | | #### #????# < ""#????# !!!!#????# # " | | #??# !#????# |"#????# !! !#????# # | | #??# !#????# ["#????# #???## ### | | #??# !!##????# """#????#### ##### #? | | #??# #####????## ############ ^ #? | | #?# #?????????# ## + ^ #? | | #?# #?????????# ## ### ^^ #? | | #?# ########### ##% #?# ^##### #? | | #?# # """ ## ## %% ### ^##??#######? | | #?# + """ # ##+####### #?????????? | | ##?# # """ # % #?????????? | | ???# # # T #?????????? | | ???# # # #?????????? | +----------------------------------------------------+ Best States ------------- Heat Dissipation 35 Energy Generation 10 Energy Capacity 250 Matter Stores 300 Matter Capacity 300 Sight Range 16 Terrain Scan Density 10 Evasion (%) 40 Recoil Reduction 2 Offensive Hacking 10 Item Schematics ----------------- None Robot Schematics ------------------ None Fabricated ------------ Nothing Alien Tech Used ----------------- None Achievements -------------- Everything Is Under Control Loot Pinata Party Time Shopping List Challenges ------------ None Game ------ Seed PoweredDispersionCutter Manual? 0 Play Time 00:55:42 Cumulative 2.6 hours Start 2020.07.14 @ 14:32:14 End 2020.07.14 @ 15:40:08 Sessions 1 Manual Loads 0 Difficulty Rogue Special Mode None Game No. 2 Rogue 2 Adventurer 0 Explorer 0 Win Type - Total 0 Types 0/0/0/0/0/0/0 Lore% 1 Gallery% 2 Achievement% 3 Wizard Run 0 Options --------- ASCII 0 Keyboard 0 Movement Arrows Keybinds 0 Fullscreen 0 Font 18/CogWide Map View 75x50 Tactical HUD 1 Map Filters NONE Filters NONE Steam 1 RUN: 495e6925-76bd-4462-a3d6-c1ba40ceed7b